lending/lending_fUSD_20240112
["ID","MTS","AMOUNT","RATE_DAILY","PERIOD"]
[311401923,1705077099747,-500.0,0.00024702,2]
[311401924,1705077099757,-2777.7,0.00024702,2]
[311401925,1705077099767,-546.11,0.00024702,2]
[311401926,1705077099776,-500.0,0.00024702,2]
[311401927,1705077099786,-1599.45,0.00024702,2]
[311401928,1705077099795,-500.0,0.00024702,2]
[311401929,1705077099804,-533.41,0.00024702,2]
[311401930,1705077099814,-666.05,0.00024702,2]
[311401931,1705077099825,-500.0,0.00024702,2]
[311401932,1705077099835,-775.82,0.00024702,2]
[311401933,1705077099845,-1275.61,0.00024702,2]
[311401934,1705077099854,-500.0,0.00024702,2]
[311401935,1705077099865,-723.72,0.00024702,2]
[311401936,1705077099874,-287.58090917,0.00024702,2]
[311401937,1705077099883,-585.13011625,0.00024702,2]
[311401938,1705077099893,-1101.03,0.00024702,2]
[311401939,1705077099903,-500.0,0.00024702,2]
[311401940,1705077099912,-2377.81,0.00024702,2]
[311401941,1705077100042,-1960.6,0.00024702,2]
[311401942,1705077100064,-612.39,0.00024702,2]
[311401943,1705077100074,-500.0,0.00024702,2]
[311401944,1705077100084,-500.0,0.00024702,2]
[311401945,1705077100094,-500.0,0.00024702,2]
[311401946,1705077100105,-4932.76,0.00024702,2]
[311401947,1705077100114,-500.0,0.00024702,2]
[311401948,1705077100124,-555.03,0.00024702,2]
[311401949,1705077100134,-500.0,0.00024702,2]
[311401950,1705077100143,-2035.38,0.00024702,2]
[311401951,1705077100152,-500.0,0.00024702,2]
[311401952,1705077100162,-500.0,0.00024702,2]
[311401953,1705077100172,-500.0,0.00024702,2]
[311401954,1705077100183,-595.74,0.00024702,2]
[311401955,1705077100193,-500.0,0.00024702,2]
[311401956,1705077100203,-1056.92,0.00024702,2]
[311401957,1705077100213,-541.9,0.00024702,5]
[311401958,1705077100223,-500.0,0.00024702,2]
[311401959,1705077100232,-500.0,0.00024703,2]
[311401960,1705077100243,-500.0,0.00024703,2]
[311401961,1705077100253,-500.0,0.00024703,2]
[311401962,1705077100262,-500.0,0.00024703,2]
[311401963,1705077100272,-500.0,0.00024703,2]
[311401964,1705077100281,-500.0,0.00024703,2]
[311401965,1705077100291,-519.46,0.00024703,2]
[311401966,1705077100300,-516.68,0.00024703,2]
[311401967,1705077100311,-1080.77,0.00024703,2]
[311401968,1705077100321,-500.0,0.00024703,2]
[311401969,1705077100332,-500.0,0.00024703,2]
[311401970,1705077100342,-710.97,0.00024703,2]
[311401971,1705077100351,-500.0,0.00024703,2]
[311401972,1705077100361,-1121.79,0.00024703,2]
[311401973,1705077100372,-500.0,0.00024703,2]
[311401974,1705077100381,-500.0,0.00024703,2]
[311401975,1705077100390,-500.0,0.00024703,2]
[311401976,1705077100400,-500.0,0.00024703,2]
[311401977,1705077100409,-500.0,0.00024703,2]
[311401978,1705077100419,-500.0,0.00024703,2]
[311401979,1705077100430,-625.58,0.00024703,2]
[311401980,1705077100439,-500.0,0.00024703,2]
[311401981,1705077100449,-500.0,0.00024703,2]
[311401982,1705077100459,-500.0,0.00024703,2]
[311401983,1705077100469,-500.0,0.00024703,2]
[311401984,1705077100479,-359.65617653,0.00024703,2]
[311401985,1705077100488,-500.0,0.00024703,2]
[311401986,1705077100498,-500.0,0.00024703,2]
[311401987,1705077100509,-616.43,0.00024703,2]
[311401988,1705077100518,-500.0,0.00024703,2]
[311401989,1705077100531,-500.0,0.00024703,2]
[311401990,1705077100541,-428.66494235,0.00024703,2]
[311401991,1705077100550,-307.65684012,0.00024703,2]
[311401992,1705077100560,-719.05,0.00024703,2]
[311401993,1705077100571,-500.0,0.00024703,2]
[311401994,1705077100581,-500.0,0.00024703,2]
[311401995,1705077100590,-217.99376646,0.00024703,2]
[311401996,1705077100601,-604.24,0.00024703,2]
[311401997,1705077100612,-500.0,0.00024703,2]
[311401998,1705077100621,-500.0,0.00024703,2]
[311401999,1705077100632,-790.24,0.00024703,2]
[311402000,1705077100642,-500.0,0.00024703,2]
[311402001,1705077100653,-700.63,0.00024703,2]
[311402002,1705077100663,-500.0,0.00024703,2]
[311402003,1705077100674,-500.0,0.00024703,2]
[311402004,1705077100685,-1719.73,0.00024703,2]
[311402005,1705077100695,-986.0,0.00024703,2]
[311402006,1705077100705,-711.04,0.00024703,2]
[311402007,1705077100715,-506.08,0.00024703,2]
[311402008,1705077100725,-500.0,0.00024703,2]
[311402009,1705077100735,-1746.57,0.00024703,2]
[311402010,1705077100745,-500.0,0.00024703,2]
[311402011,1705077100754,-1020.11,0.00024703,2]
[311402012,1705077100764,-777.31,0.00024703,2]
[311402013,1705077100773,-511.02,0.00024703,2]
[311402014,1705077100783,-2304.2,0.00024703,2]
[311402015,1705077100793,-500.0,0.00024703,2]
[311402016,1705077100802,-500.0,0.00024703,2]
[311402017,1705077100811,-2513.79,0.00024703,2]
[311402018,1705077100821,-1000.0,0.00024703,2]
[311402019,1705077100830,-500.0,0.00024703,2]
[311402020,1705077100840,-708.84,0.00024703,2]
[311402021,1705077100850,-500.0,0.00024703,2]
[311402022,1705077100859,-500.0,0.00024703,2]
[311402023,1705077100869,-500.0,0.00024704,2]
[311402024,1705077100878,-741.19,0.00024704,2]
[311402025,1705077100887,-500.0,0.00024704,2]
[311402026,1705077100897,-666.1,0.00024704,2]
[311402027,1705077100906,-500.0,0.00024704,2]
[311402028,1705077100946,-634.13701048,0.00024704,2]
[311402029,1705077100956,-500.0,0.00024704,2]
[311402030,1705077100965,-500.0,0.00024704,2]
[311402031,1705077100974,-268.7117121,0.00024704,2]
[311402032,1705077100996,-500.0,0.00024704,2]
[311402033,1705077101011,-500.0,0.00024704,2]
[311402034,1705077101030,-500.0,0.00024704,2]
[311402035,1705077101048,-671.18,0.00024704,2]
[311402036,1705077101064,-500.0,0.00024704,2]
[311402037,1705077101081,-500.0,0.00024704,2]
[311402038,1705077101096,-500.0,0.00024704,2]
[311402039,1705077101116,-500.0,0.00024704,2]
[311402040,1705077101134,-599.35,0.00024704,2]
[311402041,1705077101150,-500.0,0.00024704,2]
[311402042,1705077101172,-500.0,0.00024704,2]
[311402043,1705077101187,-500.0,0.00024704,2]
[311402044,1705077101204,-435.97,0.00024704,2]
[311402045,1705077101223,-1194.85,0.00024704,2]
[311402046,1705077101236,-500.0,0.00024704,2]
[311402047,1705077101253,-500.0,0.00024704,2]
[311402048,1705077101268,-568.86172697,0.00024704,2]
[311402049,1705077101283,-500.0,0.00024704,2]
[311402050,1705077101299,-835.11,0.00024704,2]
[311402051,1705077101314,-500.0,0.00024704,2]
[311402052,1705077101329,-500.0,0.00024704,2]
[311402053,1705077101344,-500.0,0.00024704,2]
[311402054,1705077101359,-500.0,0.00024704,2]
[311402055,1705077101375,-500.0,0.00024704,2]
[311402056,1705077101409,-910.05,0.00024704,2]
[311402057,1705077101433,-500.0,0.00024704,2]
[311402058,1705077101455,-500.0,0.00024704,2]
[311402059,1705077101475,-500.0,0.00024704,2]
[311402060,1705077101492,-500.0,0.00024704,2]
[311402061,1705077101511,-772.68,0.00024704,2]
[311402062,1705077101528,-500.0,0.00024704,2]
[311402063,1705077101545,-500.0,0.00024704,2]
[311402064,1705077101562,-500.0,0.00024704,2]
[311402065,1705077101578,-500.0,0.00024704,2]
[311402066,1705077101593,-500.0,0.00024704,2]
[311402067,1705077101609,-500.0,0.00024704,2]
[311402068,1705077101624,-581.18387484,0.00024704,2]
[311402069,1705077101640,-500.0,0.00024704,2]
[311402070,1705077101655,-500.0,0.00024704,2]
[311402071,1705077101671,-500.0,0.00024704,2]
[311402072,1705077101688,-207.58163123,0.00024704,2]
[311402073,1705077101703,-500.0,0.00024704,2]
[311402074,1705077101718,-758.57,0.00024704,2]
[311402075,1705077101734,-747.06,0.00024704,2]
[311402076,1705077101749,-500.0,0.00024704,2]
[311402077,1705077101763,-500.0,0.00024704,2]
[311402078,1705077101778,-500.0,0.00024704,2]
[311402079,1705077101794,-226.28959579,0.00024704,2]
[311402080,1705077101809,-500.0,0.00024704,2]
[311402081,1705077101824,-500.0,0.00024704,2]
[311402082,1705077101839,-500.0,0.00024704,2]
[311402083,1705077101854,-500.0,0.00024704,2]
[311402084,1705077101870,-500.0,0.00024704,2]
[311402085,1705077101885,-1049.62,0.00024704,2]
[311402086,1705077101899,-500.0,0.00024704,2]
[311402087,1705077101914,-500.0,0.00024704,2]
[311402088,1705077101930,-500.0,0.00024704,2]
[311402089,1705077101945,-500.0,0.00024704,2]
[311402090,1705077101960,-500.0,0.00024704,2]
[311402091,1705077101976,-500.0,0.00024704,2]
[311402092,1705077101992,-500.0,0.00024704,2]
[311402093,1705077102007,-500.0,0.00024704,2]
[311402094,1705077102023,-500.0,0.00024704,2]
[311402095,1705077102040,-500.0,0.00024704,2]
[311402096,1705077102060,-500.0,0.00024704,2]
[311402097,1705077102075,-439.19447933,0.00024704,2]
[311402098,1705077102090,-500.0,0.00024704,2]
[311402099,1705077102105,-1085.86,0.00024704,2]
[311402100,1705077102121,-500.0,0.00024704,2]
[311402101,1705077102136,-767.7,0.00024704,2]
[311402102,1705077102151,-515.51,0.00024704,2]
[311402103,1705077102167,-500.0,0.00024704,2]
[311402104,1705077102183,-500.0,0.00024704,2]
[311402105,1705077102199,-500.0,0.00024704,2]
[311402106,1705077102214,-515.78435269,0.00024704,2]
[311402107,1705077102230,-500.0,0.00024704,2]
[311402108,1705077102245,-500.0,0.00024704,2]
[311402109,1705077102261,-678.28,0.00024704,2]
[311402110,1705077102276,-500.0,0.00024704,2]
[311402111,1705077102291,-500.0,0.00024704,2]
[311402112,1705077102307,-3039.1,0.00024704,2]
[311402113,1705077102323,-676.63,0.00024704,2]
[311402114,1705077102339,-319.96353657,0.00024704,2]
[311402115,1705077102354,-174.08529166,0.00024704,2]
[311402116,1705077102370,-500.0,0.00024704,2]
[311402117,1705077102385,-500.0,0.00024704,2]
[311402118,1705077102401,-500.0,0.00024704,2]
[311402119,1705077102417,-640.83884377,0.00024704,2]
[311402120,1705077102608,-500.0,0.00024704,2]
[311402121,1705077102624,-902.95,0.00024704,2]
[311402122,1705077102633,-500.0,0.00024704,2]
[311402123,1705077102642,-234.78901827,0.00024704,2]
[311402124,1705077102652,-500.0,0.00024704,2]
[311402125,1705077102661,-500.0,0.00024704,2]
[311402126,1705077102670,-605.4,0.00024704,2]
[311402127,1705077102679,-500.0,0.00024704,2]
[311402128,1705077102690,-500.0,0.00024706,2]
[311402129,1705077102699,-500.0,0.00024706,2]
[311402130,1705077102708,-295.78855077,0.00024707,2]
[311402131,1705077102717,-5941.09233246,0.00024857,2]
[311402132,1705077103126,-7224.51900491,0.00024857,2]
[311402133,1705077103136,-153.88,0.0002492,2]
[311402134,1705077103145,-170.02333317,0.00024971,2]
[311402135,1705077103155,-625.39,0.00024971,2]
[311402136,1705077103164,-276.18832343,0.00024971,2]
[311402137,1705077103174,-1429.49,0.00024972,2]
[311402138,1705077103184,-9945.1,0.00024972,2]
[311402139,1705077103194,-978.78,0.00024972,2]
[311402140,1705077103203,-1378.24,0.00024972,2]
[311402141,1705077103213,-867.37,0.00024972,2]
[311402142,1705077103223,-576.62,0.00024972,2]
[311402143,1705077103233,-1895.37,0.00024972,2]
[311402144,1705077103243,-741.66,0.00024972,2]
[311402145,1705077103252,-594.56,0.00024972,2]
[311402146,1705077103262,-28063.97,0.00024972,2]
[311402147,1705077103274,-500.0,0.00024972,2]
[311402148,1705077103284,-1179.37,0.00024972,2]
[311402149,1705077103293,-1161.83,0.00024972,2]
[311402150,1705077103307,-16126.91,0.00024972,2]
[311402151,1705077103316,-5776.69,0.00024972,2]
[311402152,1705077103326,-854.65,0.00024972,2]
[311402153,1705077103336,-788.93,0.00024972,2]
[311402154,1705077103346,-500.0,0.00024972,2]
[311402155,1705077103356,-846.93,0.00024972,2]
[311402156,1705077103365,-500.0,0.00024972,2]
[311402157,1705077103375,-2347.67,0.00024972,2]
[311402158,1705077103385,-944.74,0.00024972,2]
[311402159,1705077103394,-556.66,0.00024972,2]
[311402160,1705077103403,-915.17,0.00024972,2]
[311402161,1705077103413,-801.65,0.00024972,2]
[311402162,1705077103423,-11316.9,0.00024972,2]
[311402163,1705077103433,-1188.34,0.00024972,2]
[311402164,1705077103444,-1285.67,0.00024972,2]
[311402165,1705077103454,-520.06,0.00024972,2]
[311402166,1705077103463,-1592.48,0.00024972,2]
[311402167,1705077103473,-575.88,0.00024972,2]
[311402168,1705077103482,-1869.56,0.00024972,2]
[311402169,1705077103492,-1025.29,0.00024972,2]
[311402170,1705077103501,-765.07,0.00024972,2]
[311402171,1705077103511,-1932.17,0.00024972,2]
[311402172,1705077103521,-500.0,0.00024972,2]
[311402173,1705077103531,-825.06,0.00024972,2]
[311402174,1705077103541,-1309.88,0.00024972,2]
[311402175,1705077103551,-500.0,0.00024974,2]
[311402176,1705077103562,-1331.39,0.00024974,2]
[311402177,1705077103571,-1601.07,0.00024974,2]
[311402178,1705077103585,-1448.76,0.00024974,5]
[311402179,1705077103595,-553.23,0.00024974,2]
[311402180,1705077103604,-6027.14,0.00024974,2]
[311402181,1705077103615,-8057.22,0.00024974,2]
[311402182,1705077103624,-2024.92,0.00024974,2]
[311402183,1705077103634,-839.27,0.00024974,2]
[311402184,1705077103643,-1398.26,0.00024974,2]
[311402185,1705077103654,-4395.36,0.00024974,2]
[311402186,1705077103664,-791.14,0.00024974,2]
[311402187,1705077103673,-500.0,0.00024975,2]
[311402188,1705077103682,-500.0,0.00024975,2]
[311402189,1705077103694,-976.62,0.00024975,2]
[311402190,1705077103703,-937.67,0.00024975,2]
[311402191,1705077103712,-500.0,0.00024975,2]
[311402192,1705077103722,-500.0,0.00024975,2]
[311402193,1705077103735,-500.0,0.00024975,2]
[311402194,1705077103744,-500.0,0.00024975,2]
[311402195,1705077103753,-500.0,0.00024975,2]
[311402196,1705077103763,-500.0,0.00024975,2]
[311402197,1705077103772,-633.07457388,0.00024975,2]
[311402198,1705077103782,-500.0,0.00024975,2]
[311402199,1705077103791,-500.0,0.00024975,2]
[311402200,1705077103800,-500.0,0.00024975,2]
[311402201,1705077103811,-500.0,0.00024975,2]
[311402202,1705077103820,-500.0,0.00024975,2]
[311402203,1705077103830,-301.04931605,0.00024975,2]
[311402204,1705077103838,-500.0,0.00024975,2]
[311402205,1705077103848,-500.0,0.00024975,2]
[311402206,1705077103857,-500.0,0.00024975,2]
[311402207,1705077103866,-1107.53,0.00024975,2]
[311402208,1705077103875,-608.63,0.00024975,2]
[311402209,1705077103886,-250.3590504,0.00024975,2]
[311402210,1705077103896,-500.0,0.00024975,2]
[311402211,1705077103905,-500.0,0.00024975,2]
[311402212,1705077103915,-500.0,0.00024975,2]
[311402213,1705077103925,-500.0,0.00024975,2]
[311402214,1705077103941,-565.8,0.00024975,2]
[311402215,1705077103950,-500.0,0.00024975,2]
[311402216,1705077103959,-500.0,0.00024975,2]
[311402217,1705077103969,-500.0,0.00024975,2]
[311402218,1705077103979,-500.0,0.00024975,2]
[311402219,1705077103988,-500.0,0.00024975,2]
[311402220,1705077103998,-523.56,0.00024975,2]
[311402221,1705077104007,-594.07,0.00024975,2]
[311402222,1705077104018,-1120.5,0.00024975,2]
[311402223,1705077104027,-571.6,0.00024975,2]
[311402224,1705077104037,-165.42160423,0.00024975,2]
[311402225,1705077104047,-500.0,0.00024975,2]
[311402226,1705077104056,-500.0,0.00024975,2]
[311402227,1705077104066,-500.0,0.00024975,2]
[311402228,1705077104075,-500.0,0.00024975,2]
[311402229,1705077104085,-500.0,0.00024975,2]
[311402230,1705077104095,-491.06329962,0.00024975,2]
[311402231,1705077104105,-992.52,0.00024975,2]
[311402232,1705077104115,-605.97,0.00024975,2]
[311402233,1705077104125,-1474.92,0.00024975,2]
[311402234,1705077104136,-4177.28,0.00024975,2]
[311402235,1705077104145,-500.0,0.00024975,2]
[311402236,1705077104155,-500.0,0.00024975,2]
[311402237,1705077104165,-1872.87,0.00024975,2]
[311402238,1705077104174,-500.0,0.00024975,2]
[311402239,1705077104187,-1357.01,0.00024975,2]
[311402240,1705077104197,-10644.17,0.00024975,2]
[311402241,1705077104207,-500.0,0.00024975,2]
[311402242,1705077104217,-150.0,0.00024975,2]
[311402243,1705077104226,-500.0,0.00024975,2]
[311402244,1705077104237,-500.0,0.00024975,2]
[311402245,1705077104247,-500.0,0.00024975,2]
[311402246,1705077104257,-4961.7,0.00024975,2]
[311402247,1705077104267,-933.63,0.00024975,2]
[311402248,1705077104281,-500.0,0.00024975,2]
[311402249,1705077104291,-500.0,0.00024975,2]
[311402250,1705077104301,-636.31,0.00024975,2]
[311402251,1705077104311,-500.0,0.00024975,2]
[311402252,1705077104321,-500.0,0.00024975,2]
[311402253,1705077104332,-1195.27,0.00024975,2]
[311402254,1705077104342,-1808.5,0.00024975,2]
[311402255,1705077104352,-1852.8,0.00024975,2]
[311402256,1705077104362,-3071.92,0.00024975,2]
[311402257,1705077104372,-2545.58,0.00024975,2]
[311402258,1705077104382,-500.0,0.00024975,2]
[311402259,1705077104392,-500.0,0.00024975,2]
[311402260,1705077104401,-500.0,0.00024975,2]
[311402261,1705077104411,-179.97488609,0.00024975,2]
[311402262,1705077104421,-2126.07,0.00024975,2]
[311402263,1705077104431,-500.0,0.00024975,2]
[311402264,1705077104444,-877.7,0.00024975,2]
[311402265,1705077104453,-1558.28,0.00024975,2]
[311402266,1705077104473,-269.34885811,0.00024975,2]
[311402267,1705077104483,-3767.3,0.00024975,2]
[311402268,1705077104493,-1845.89,0.00024975,2]
[311402269,1705077104504,-669.67,0.00024975,2]
[311402270,1705077104514,-2228.6,0.00024975,2]
[311402271,1705077104524,-500.0,0.00024975,2]
[311402272,1705077104535,-846.0,0.00024975,2]
[311402273,1705077104545,-13698.75,0.00024975,2]
[311402274,1705077104554,-2416.09,0.00024975,2]
[311402275,1705077104564,-1205.25,0.00024975,2]
[311402276,1705077104574,-361.58984141,0.00024975,2]
[311402277,1705077104584,-3731.97,0.00024975,2]
[311402278,1705077104594,-404.18541714,0.00024975,2]
[311402279,1705077104604,-500.0,0.00024975,2]
[311402280,1705077104615,-812.57,0.00024975,2]
[311402281,1705077104625,-500.0,0.00024975,2]
[311402282,1705077104634,-500.0,0.00024975,2]
[311402283,1705077104644,-2269.52,0.00024975,2]
[311402284,1705077104654,-500.0,0.00024975,2]
[311402285,1705077104664,-1615.37,0.00024975,2]
[311402286,1705077104674,-500.0,0.00024975,2]
[311402287,1705077104686,-946.07,0.00024975,2]
[311402288,1705077104695,-500.0,0.00024975,2]
[311402289,1705077104705,-636.34,0.00024975,2]
[311402290,1705077104715,-500.0,0.00024975,2]
[311402291,1705077104724,-656.56,0.00024975,2]
[311402292,1705077104733,-500.0,0.00024976,2]
[311402293,1705077104743,-500.0,0.00024976,2]
[311402294,1705077104752,-500.0,0.00024976,2]
[311402295,1705077104761,-500.0,0.00024976,2]
[311402296,1705077104771,-425.29687561,0.00024976,2]
[311402297,1705077104781,-500.0,0.00024976,2]
[311402298,1705077104790,-600.96,0.00024976,2]
[311402299,1705077104800,-500.0,0.00024976,2]
[311402300,1705077104809,-500.0,0.00024976,2]
[311402301,1705077104819,-500.0,0.00024976,2]
[311402302,1705077104828,-500.0,0.00024976,2]
[311402303,1705077104838,-500.0,0.00024976,2]
[311402304,1705077104848,-571.62,0.00024976,2]
[311402305,1705077104858,-500.0,0.00024976,2]
[311402306,1705077104867,-500.0,0.00024976,2]
[311402307,1705077104876,-1417.94,0.00024976,2]
[311402308,1705077104886,-500.0,0.00024976,2]
[311402309,1705077104895,-500.0,0.00024976,2]
[311402310,1705077104905,-965.53,0.00024976,2]
[311402311,1705077104914,-2036.95,0.00024976,2]
[311402312,1705077104923,-500.0,0.00024976,2]
[311402313,1705077104933,-500.0,0.00024976,2]
[311402314,1705077104944,-500.0,0.00024976,2]
[311402315,1705077104953,-500.0,0.00024976,2]
[311402316,1705077104962,-500.0,0.00024976,2]
[311402317,1705077104982,-500.0,0.00024976,2]
[311402318,1705077104994,-500.0,0.00024976,2]
[311402319,1705077105003,-500.0,0.00024976,2]
[311402320,1705077105014,-500.0,0.00024976,2]
[311402321,1705077105024,-2001.96,0.00024976,2]
[311402322,1705077105034,-594.21,0.00024976,2]
[311402323,1705077105044,-683.21,0.00024976,2]
[311402324,1705077105053,-565.97,0.00024976,2]
[311402325,1705077105064,-500.0,0.00024976,2]
[311402326,1705077105074,-511.84,0.00024976,2]
[311402327,1705077105083,-1545.91,0.00024976,2]
[311402328,1705077105093,-1125.76,0.00024976,2]
[311402329,1705077105103,-806.95,0.00024976,2]
[311402330,1705077105113,-500.0,0.00024976,2]
[311402331,1705077105123,-1118.05,0.00024976,2]
[311402332,1705077105132,-806.37,0.00024976,2]
[311402333,1705077105142,-4705.31,0.00024976,2]
[311402334,1705077105152,-4838.78,0.00024976,2]
[311402335,1705077105161,-973.61,0.00024976,2]
[311402336,1705077105172,-500.0,0.00024976,2]
[311402337,1705077105182,-3717.14,0.00024976,2]
[311402338,1705077105194,-964.46,0.00024976,2]
[311402339,1705077105205,-500.0,0.00024976,2]
[311402340,1705077105214,-500.0,0.00024976,2]
[311402341,1705077105225,-500.0,0.00024976,2]
[311402342,1705077105236,-628.62,0.00024976,2]
[311402343,1705077105246,-508.58,0.00024976,2]
[311402344,1705077105255,-1093.02,0.00024976,2]
[311402345,1705077105265,-2444.08,0.00024976,2]
[311402346,1705077105276,-1131.66,0.00024976,2]
[311402347,1705077105286,-829.37,0.00024976,2]
[311402348,1705077105296,-1941.71,0.00024976,2]
[311402349,1705077105306,-923.95,0.00024976,2]
[311402350,1705077105318,-500.0,0.00024976,2]
[311402351,1705077105329,-693.03,0.00024976,2]
[311402352,1705077105339,-484.05256527,0.00024976,2]
[311402353,1705077105595,-2777.7,0.00024976,2]
[311402354,1705077105605,-546.11,0.00024976,2]
[311402355,1705077105615,-500.0,0.00024976,2]
[311402356,1705077105625,-1599.45,0.00024976,2]
[311402357,1705077105635,-500.0,0.00024976,2]
[311402358,1705077105644,-533.41,0.00024976,2]
[311402359,1705077105654,-666.05,0.00024976,2]
[311402360,1705077105663,-500.0,0.00024976,2]
[311402361,1705077105673,-775.82,0.00024976,2]
[311402362,1705077105682,-1275.61,0.00024976,2]
[311402363,1705077105694,-500.0,0.00024976,2]
[311402364,1705077105703,-723.72,0.00024976,2]
[311402365,1705077105713,-1101.03,0.00024976,2]
[311402366,1705077105722,-500.0,0.00024976,2]
[311402367,1705077105731,-2377.81,0.00024976,2]
[311402368,1705077105740,-1960.6,0.00024976,2]
[311402369,1705077105749,-612.39,0.00024976,2]
[311402370,1705077105758,-500.0,0.00024976,2]
[311402371,1705077105768,-500.0,0.00024976,2]
[311402372,1705077105777,-4932.76,0.00024976,2]
[311402373,1705077105787,-500.0,0.00024976,2]
[311402374,1705077105798,-500.0,0.00024976,2]
[311402375,1705077105808,-555.03,0.00024976,2]
[311402376,1705077105818,-500.0,0.00024976,2]
[311402377,1705077105827,-2035.38,0.00024976,2]
[311402378,1705077105836,-204.19,0.00024976,2]
[311402379,1705077105846,-500.0,0.00024976,2]
[311402380,1705077105856,-500.0,0.00024976,2]
[311402381,1705077105866,-595.74,0.00024976,2]
[311402382,1705077105876,-500.0,0.00024976,2]
[311402383,1705077105885,-1056.92,0.00024976,2]
[311402384,1705077105895,-541.9,0.00024976,5]
[311402385,1705077105905,-500.0,0.00024976,2]
[311402386,1705077105914,-283.25459119,0.00024977,2]
[311402387,1705077105924,-500.0,0.00024977,2]
[311402388,1705077105933,-500.0,0.00024977,2]
[311402389,1705077105944,-396.97251771,0.00024977,2]
[311402390,1705077105954,-500.0,0.00024977,2]
[311402391,1705077105963,-519.46,0.00024977,2]
[311402392,1705077105973,-516.68,0.00024977,2]
[311402393,1705077105982,-1080.77,0.00024977,2]
[311402394,1705077105992,-500.0,0.00024977,2]
[311402395,1705077106001,-500.0,0.00024977,2]
[311402396,1705077106011,-710.97,0.00024977,2]
[311402397,1705077106021,-500.0,0.00024977,2]
[311402398,1705077106030,-1121.79,0.00024977,2]
[311402399,1705077106041,-500.0,0.00024977,2]
[311402400,1705077106051,-500.0,0.00024977,2]
[311402401,1705077106061,-500.0,0.00024977,2]
[311402402,1705077106070,-500.0,0.00024977,2]
[311402403,1705077106079,-500.0,0.00024977,2]
[311402404,1705077106089,-500.0,0.00024977,2]
[311402405,1705077106098,-625.58,0.00024977,2]
[311402406,1705077106108,-298.65765207,0.00024977,2]
[311402407,1705077106117,-500.0,0.00024977,2]
[311402408,1705077106126,-516.66280689,0.00024977,2]
[311402409,1705077106136,-500.0,0.00024977,2]
[311402410,1705077106145,-500.0,0.00024977,2]
[311402411,1705077106154,-500.0,0.00024977,2]
[311402412,1705077106164,-616.43,0.00024977,2]
[311402413,1705077106174,-589.77780988,0.00024977,2]
[311402414,1705077106183,-500.0,0.00024977,2]
[311402415,1705077106195,-719.05,0.00024977,2]
[311402416,1705077106205,-500.0,0.00024977,2]
[311402417,1705077106215,-500.0,0.00024977,2]
[311402418,1705077106225,-604.24,0.00024977,2]
[311402419,1705077106234,-500.0,0.00024977,2]
[311402420,1705077106244,-500.0,0.00024977,2]
[311402421,1705077106255,-790.24,0.00024977,2]
[311402422,1705077106265,-500.0,0.00024977,2]